bitfinex/quotes_SOLUSD_20240726
["timestamp","ask_amount","ask_price","bid_price","bid_amount"]
[1721961356928,256.6,175.07,174.93,6.0287]
[1721961357231,380.5,175.08,174.95,15.2121]
[1721961357443,27.65276717,175.11,174.96,66.14260189]
[1721961357750,26.52466437,175.11,174.96,66.14260189]
[1721961357936,32.23526437,175.11,174.96,66.14260189]
[1721961358135,26.52466437,175.11,174.96,66.14260189]
[1721961358342,25.38,175.11,174.96,66.14260189]
[1721961358643,25.38,175.11,174.97,6.6255]
[1721961358853,1.14466437,175.1,174.98,20.0]
[1721961359059,25.38,175.11,174.99,1.14253489]
[1721961359429,25.38,175.14,174.99,46.14253489]
[1721961359626,25.38,175.14,175.01,22.6135]
[1721961359826,25.38,175.14,175.02,20.0]
[1721961360223,25.38,175.14,175.02,21.14234783]
[1721961360224,1.14466437,175.14,175.02,21.14234783]
[1721961360425,25.38,175.15,175.02,21.14234783]
[1721961360943,25.38,175.15,175.03,45.0]
[1721961361247,25.38,175.18,175.04,21.14203757]
[1721961361648,25.38,175.15,175.04,20.0]
[1721961361832,25.38,175.12,175.04,20.0]
[1721961362156,25.38,175.09,175.01,22.6135]
[1721961362338,25.38,175.09,175.02,20.0]
[1721961363343,25.38,175.12,175.02,20.0]
[1721961363532,25.38,175.16,175.02,21.14235701]
[1721961364325,25.38,175.16,175.03,45.0]
[1721961364530,25.38,175.16,175.04,21.14212182]
[1721961364953,25.38,175.16,175.05,1.14212174]
[1721961365255,25.38,175.19,175.05,46.14212174]
[1721961365439,25.38,175.19,175.06,20.0]
[1721961365748,637.1,175.22,175.09,15.6325]
[1721961365933,26.52466437,175.21,175.09,15.6325]
[1721961366129,1.14466437,175.2,175.09,15.6325]
[1721961366543,414.7771,175.22,175.09,15.6325]
[1721961366735,21.14466437,175.21,175.09,15.6325]
[1721961366935,1.14466437,175.2,175.09,15.6325]
[1721961367135,46.14466437,175.2,175.09,15.6325]
[1721961368242,45.0,175.2,175.09,15.6325]
[1721961369044,46.14466437,175.2,175.09,15.6325]
[1721961369251,45.0,175.2,175.1,1.14188695]
[1721961369446,45.0,175.2,175.09,15.6325]
[1721961370150,45.0,175.2,175.1,1.14188962]
[1721961370449,45.0,175.21,175.11,1.14178899]
[1721961370959,45.0,175.21,175.1,20.0]
[1721961371250,45.0,175.21,175.11,1.14179099]
[1721961372637,45.0,175.21,175.1,21.14172483]
[1721961372846,45.0,175.21,175.1,20.0]
[1721961373050,45.0,175.22,175.1,20.0]
[1721961373249,46.14466437,175.23,175.1,20.0]
[1721961373437,1.14466437,175.22,175.1,20.0]
[1721961373650,29.71466437,175.22,175.1,20.0]
[1721961373851,45.0,175.21,175.1,21.14187643]
[1721961374134,45.0,175.21,175.1,20.0]
[1721961375546,1.14466437,175.2,175.1,20.0]
[1721961375944,45.0,175.21,175.1,20.0]
[1721961376147,45.0,175.21,175.1,21.14186835]
[1721961376356,45.0,175.21,175.1,20.0]
[1721961376865,1.14466437,175.2,175.1,20.0]
[1721961377246,1.14466437,175.2,175.09,15.6325]
[1721961377546,6.85256437,175.2,175.09,15.6325]
[1721961377748,45.0,175.19,175.09,15.6325]
[1721961378244,45.0,175.19,175.09,16.77452455]
[1721961378437,45.0,175.19,175.09,15.6325]
[1721961378854,29.71466437,175.22,175.09,15.6325]
[1721961379262,45.0,175.21,175.09,15.6325]
[1721961379464,1.14466437,175.2,175.09,15.6325]
[1721961379767,6.85246437,175.2,175.09,15.6325]
[1721961379958,45.0,175.19,175.09,15.6325]
[1721961380140,1.14466437,175.18,175.09,15.6325]
[1721961380342,1.14466437,175.17,175.09,15.6325]
[1721961381140,28.57,175.24,175.09,16.77239407]
[1721961381849,28.57,175.24,175.1,20.0]
[1721961382667,66.14466437,175.23,175.1,20.0]
[1721961383163,45.0,175.23,175.11,1.14174557]
[1721961383363,46.14466437,175.23,175.12,6.5627]
[1721961384472,51.85156437,175.23,175.12,6.5627]
[1721961384969,46.14466437,175.23,175.12,6.5627]
[1721961385139,1.14466437,175.23,175.12,6.5627]
[1721961385346,21.14466437,175.23,175.12,6.5627]
[1721961385571,45.0,175.22,175.12,6.5627]
[1721961385978,45.0,175.23,175.12,6.5627]
[1721961386468,1.14466437,175.22,175.12,6.5627]
[1721961388269,26.53466437,175.22,175.12,6.5627]
[1721961388477,45.0,175.21,175.12,6.5627]
[1721961388659,25.39,175.22,175.12,6.5627]
[1721961389386,46.14466437,175.23,175.12,6.5627]
[1721961389387,17.14646437,175.26,175.13,1.14168704]
[1721961389565,45.39,175.25,175.13,1.14168704]
[1721961390287,25.39,175.25,175.14,16.174]
[1721961390587,25.39,175.25,175.15,21.14157505]
[1721961390765,45.0,175.24,175.15,21.14157505]
[1721961391089,45.0,175.24,175.15,20.0]
[1721961391466,45.0,175.24,175.15,21.1415753]
[1721961391880,45.0,175.24,175.14,16.174]
[1721961392064,1.14466437,175.23,175.14,16.174]
[1721961392273,25.39,175.22,175.14,16.174]
[1721961393699,25.39,175.19,175.12,6.5627]
[1721961393986,46.14466437,175.18,175.12,6.5627]
[1721961394792,25.39,175.16,175.1,15.8048]
[1721961395285,25.39,175.19,175.1,15.8048]
[1721961395464,1.14466437,175.22,175.1,15.8048]
[1721961395665,46.14466437,175.22,175.1,15.8048]
[1721961396611,45.0,175.22,175.1,15.8048]
[1721961396895,1.14466437,175.21,175.1,15.8048]
[1721961397477,45.0,175.22,175.1,15.8048]
[1721961397693,25.39,175.2,175.1,15.8048]
[1721961398295,25.39,175.2,175.11,20.0]
[1721961398596,45.0,175.22,175.11,21.14168544]
[1721961399311,25.39,175.26,175.13,16.5306]
[1721961399520,25.39,175.26,175.13,17.672177]
[1721961399799,26.53466437,175.26,175.13,16.5306]
[1721961400099,25.39,175.23,175.13,16.5306]
[1721961400325,20.0,175.22,175.13,16.5306]
[1721961400506,45.0,175.21,175.13,16.5306]
[1721961400678,1.14466437,175.2,175.13,16.5306]
[1721961400879,25.39,175.2,175.13,16.5306]
[1721961401384,26.53466437,175.2,175.13,16.5306]
[1721961401600,45.0,175.19,175.13,16.5306]
[1721961402009,1.14466437,175.18,175.13,16.5306]
[1721961402188,1.14466437,175.17,175.13,16.5306]
[1721961403786,45.0,175.19,175.13,16.5306]
[1721961404010,25.39,175.17,175.12,6.3256]
[1721961404206,1.14466437,175.16,175.12,6.3256]
[1721961404503,25.39,175.2,175.12,6.3256]
[1721961404799,20.0,175.19,175.12,6.3256]
[1721961405002,25.39,175.17,175.09,15.8013]
[1721961405206,1.14466437,175.16,175.09,15.8013]
[1721961405792,46.14466437,175.16,175.09,15.8013]
[1721961406901,1.14466437,175.16,175.09,15.8013]
[1721961407203,2.25667846,175.22,175.09,16.94327032]
[1721961407204,25.39,175.21,175.09,16.94327032]
[1721961407387,25.39,175.21,175.1,20.0]
[1721961407704,25.39,175.24,175.11,1.14177373]
[1721961407906,25.39,175.24,175.12,21.5478]
[1721961408204,25.39,175.27,175.13,21.14157473]
[1721961408387,25.39,175.27,175.15,15.2317]
[1721961408711,25.39,175.27,175.16,6.3161]
[1721961408883,1.14466437,175.26,175.16,6.3161]
[1721961409700,46.14466437,175.26,175.16,6.3161]
[1721961410504,25.39,175.24,175.16,6.3161]
[1721961411506,1.14466437,175.26,175.16,6.3161]
[1721961411885,21.14466437,175.26,175.16,6.3161]
[1721961412799,1.14466437,175.26,175.16,6.3161]
[1721961412997,46.14466437,175.26,175.16,6.3161]
[1721961414783,45.0,175.26,175.16,6.3161]
[1721961414990,70.39,175.26,175.16,6.3161]
[1721961415602,45.0,175.26,175.16,6.3161]
[1721961418507,46.14466437,175.26,175.16,6.3161]
[1721961419009,25.39,175.24,175.16,6.3161]
[1721961419213,46.14466437,175.23,175.16,6.3161]
[1721961419412,45.0,175.23,175.16,6.3161]
[1721961419613,46.14466437,175.23,175.16,6.3161]
[1721961421194,25.39,175.24,175.16,6.3161]
[1721961421591,25.39,175.27,175.16,6.3161]
[1721961421803,25.39,175.27,175.17,20.0]
[1721961421996,1.14466437,175.26,175.17,20.0]
[1721961422199,25.39,175.27,175.17,20.0]
[1721961422402,26.53466437,175.27,175.17,20.0]
[1721961422711,25.39,175.27,175.18,15.5434]
[1721961424213,0.8313573,175.28,175.2,15.5434]
[1721961424514,0.8313573,175.28,175.21,1.14117589]
[1721961425217,0.8313573,175.28,175.22,21.7164]
[1721961425419,0.8313573,175.28,175.23,21.14093008]
[1721961425604,25.39,175.35,175.25,10.8147]
[1721961425802,25.39,175.38,175.26,1.1408734]
[1721961426003,1.14466437,175.37,175.26,20.0]
[1721961426906,26.53466437,175.38,175.27,6.1834]
[1721961427101,1.14466437,175.37,175.27,6.1834]
[1721961428434,25.39,175.35,175.27,6.1834]
[1721961428614,46.14466437,175.34,175.27,6.1834]
[1721961430339,25.39,175.35,175.27,6.1834]
[1721961431302,25.39,175.38,175.27,6.1834]
[1721961431503,21.14466437,175.37,175.27,6.1834]
[1721961432109,1.14466437,175.37,175.27,6.1834]
[1721961432432,25.39,175.38,175.27,7.32411378]
[1721961432627,25.39,175.41,175.27,7.32411378]
[1721961432936,25.39,175.41,175.29,15.2725]
[1721961433111,25.39,175.41,175.3,21.1405314]
[1721961433313,25.39,175.41,175.3,20.0]
[1721961433622,25.39,175.41,175.31,1.1405314]
[1721961434003,25.39,175.41,175.3,21.14054951]
[1721961434733,45.0,175.4,175.3,21.14054951]
[1721961435339,1.14466437,175.39,175.3,20.0]
[1721961435825,25.39,175.38,175.29,15.2725]
[1721961436032,45.0,175.37,175.29,15.2725]
[1721961436403,46.14466437,175.37,175.29,15.2725]
[1721961436603,45.0,175.37,175.29,15.2725]
[1721961438630,3.3739527,175.44,175.29,15.2725]
[1721961438827,23.3739527,175.44,175.29,15.2725]
[1721961439022,25.39,175.38,175.29,15.2725]
[1721961440117,46.14466437,175.37,175.29,15.2725]
[1721961442440,25.39,175.35,175.29,15.2725]
[1721961442621,46.14466437,175.37,175.27,6.1834]
[1721961442622,25.39,175.32,175.27,6.1834]
[1721961443007,25.39,175.32,175.24,15.9911]
[1721961443319,25.39,175.29,175.24,15.9911]
[1721961443627,1.14466437,175.28,175.2,15.9911]
[1721961443831,25.39,175.26,175.2,15.9911]
[1721961444127,26.53466437,175.26,175.2,15.9911]
[1721961444918,25.39,175.23,175.18,6.0699]
[1721961445127,1.14466437,175.22,175.18,6.0699]
[1721961445320,26.53466437,175.23,175.18,6.0699]
[1721961445933,25.39,175.2,175.13,6.5782]
[1721961446231,1.14466437,175.19,175.12,15.3296]
[1721961447636,1.14466437,175.19,175.09,6.5782]
[1721961448417,66.14466437,175.2,175.09,6.5782]
[1721961449521,71.85266437,175.2,175.09,6.5782]
[1721961449839,28.57,175.17,175.07,0.99433759]
[1721961450053,1.14466437,175.16,175.07,0.99433759]
[1721961450224,66.14466437,175.16,175.07,0.99433759]
[1721961450434,66.14466437,175.16,175.04,21.9078]
[1721961450730,66.14466437,175.16,175.04,22.90254916]
[1721961452315,71.85366437,175.16,175.04,22.90254916]
[1721961452940,71.85366437,175.16,175.04,21.9078]
[1721961453317,5.7094,175.15,175.04,21.9078]
[1721961453515,66.14466437,175.14,175.04,21.9078]
[1721961454944,66.14466437,175.14,174.96,1.14226133]
[1721961454945,16.3527,175.12,175.0,15.4108]
[1721961455141,45.0,175.11,175.0,16.55318641]
[1721961456034,45.0,175.11,175.0,15.4108]
[1721961456220,45.0,175.11,175.01,20.0]
[1721961456849,1.14466437,175.1,175.01,20.0]
[1721961457340,45.0,175.11,175.01,20.0]
[1721961457549,1.14466437,175.1,175.0,15.4108]
[1721961457740,21.14466437,175.1,175.0,15.4108]
[1721961458552,20.0,175.1,175.0,15.4108]
[1721961458762,74.71466437,175.09,175.0,15.4108]
[1721961458943,74.71466437,175.09,174.99,6.5022]
[1721961459137,46.14466437,175.09,175.0,20.0]
[1721961459332,21.14466437,175.1,175.0,20.0]
[1721961459528,1.14466437,175.1,175.0,20.0]
[1721961459744,46.14466437,175.1,175.0,20.0]
[1721961460146,20.0,175.09,175.0,20.0]
[1721961460362,46.14466437,175.08,175.0,20.0]
[1721961460951,46.14466437,175.08,174.99,6.5022]
[1721961461254,46.14466437,175.08,174.96,16.37107604]
[1721961461255,20.0,175.07,174.96,16.37107604]
[1721961461457,21.14466437,175.07,174.97,20.0]
[1721961461760,45.0,175.06,174.97,20.0]
[1721961462129,20.0,175.07,174.97,20.0]
[1721961462354,45.0,175.06,174.97,20.0]
[1721961463730,20.0,175.05,174.96,16.37107604]
[1721961464049,29.71466437,175.11,174.96,17.51376758]
[1721961464228,66.14466437,175.1,174.96,17.51376758]
[1721961464434,65.0,175.1,174.96,17.51376758]
[1721961465142,65.0,175.1,174.97,20.0]
[1721961465357,66.14466437,175.1,174.97,20.0]
[1721961466235,25.43,175.08,174.97,20.0]
[1721961466460,65.0,175.07,174.97,20.0]
[1721961466955,25.43,175.11,174.98,46.14267213]
[1721961467133,20.0,175.1,174.99,21.14250607]
[1721961467462,20.0,175.1,174.99,20.0]
[1721961467653,21.14466437,175.1,174.99,20.0]
[1721961468768,20.0,175.1,174.99,20.0]
[1721961469455,21.14466437,175.1,174.99,20.0]
[1721961469655,45.0,175.09,174.97,20.0]
[1721961469872,45.43,175.08,174.97,20.0]
[1721961470048,45.0,175.07,174.97,20.0]
[1721961470239,45.0,175.07,174.98,1.1426136]
[1721961470642,45.0,175.07,174.97,20.0]
[1721961470958,45.43,175.08,174.98,1.14266173]
[1721961471131,45.43,175.08,174.98,46.14266173]
[1721961471335,45.43,175.08,174.99,20.0]
[1721961471860,25.43,175.08,174.97,20.0]
[1721961472056,25.43,175.11,174.98,46.14251253]
[1721961472263,20.0,175.1,174.99,21.14243446]
[1721961474366,21.14466437,175.1,174.99,20.0]
[1721961474741,20.0,175.1,174.99,20.0]
[1721961475256,20.0,175.1,174.99,21.14250244]
[1721961476849,45.0,175.09,174.99,21.14250244]
[1721961477049,45.0,175.09,174.97,20.0]
[1721961477346,45.0,175.09,174.97,21.14256783]
[1721961482478,45.0,175.09,174.98,6.0329]
[1721961482669,45.0,175.09,174.99,21.14243836]
[1721961483292,16.3527,175.12,174.99,21.14243836]
[1721961483293,27.8523,175.17,174.99,21.14243836]
[1721961483572,22.1436,175.17,175.01,6.1262]
[1721961483794,15.6535,175.21,175.04,6.1262]
[1721961484003,25.43,175.2,175.05,36.73325364]
[1721961484155,25.43,175.23,175.07,15.5913]
[1721961484362,26.57466437,175.23,175.08,21.14171302]
[1721961486756,20.0,175.22,175.08,21.14171302]
[1721961487563,45.0,175.21,175.08,21.14171302]
[1721961488380,26.57466437,175.2,175.08,20.0]
[1721961488549,45.0,175.19,175.08,20.0]
[1721961488879,1.14466437,175.18,175.08,20.0]
[1721961489252,46.14466437,175.19,175.08,20.0]
[1721961489448,45.0,175.19,175.07,15.5913]
[1721961490484,1.14466437,175.18,175.07,15.5913]
[1721961490781,45.0,175.19,175.08,20.0]
[1721961491379,45.0,175.19,175.08,21.14201554]
[1721961492375,45.0,175.19,175.08,20.0]
[1721961493079,45.0,175.19,175.08,21.14192866]
[1721961494763,46.14466437,175.19,175.08,20.0]
[1721961497071,25.43,175.17,175.07,15.5913]
[1721961497269,45.0,175.16,175.07,15.5913]
[1721961497916,1.14466437,175.15,175.07,15.5913]
[1721961498203,45.0,175.16,175.08,1.14215998]
[1721961498376,45.0,175.16,175.08,20.0]
[1721961498692,45.0,175.16,175.07,15.5913]
[1721961498868,25.43,175.14,175.07,15.5913]
[1721961499072,46.14466437,175.13,175.07,15.5913]
[1721961499696,45.0,175.13,175.07,15.5913]
[1721961499902,46.14466437,175.13,175.07,15.5913]
[1721961500071,45.0,175.13,175.07,15.5913]
[1721961500576,1.14466437,175.12,175.06,6.5975]
[1721961500777,1.14466437,175.12,175.02,21.6689]
[1721961501682,45.0,175.13,175.02,21.6689]
[1721961501905,25.43,175.14,175.03,21.14239836]
[1721961502104,41.6161,175.17,175.03,21.14239836]
[1721961502406,20.0,175.16,175.03,21.14239836]
[1721961502580,1.14466437,175.15,175.03,20.0]
[1721961503182,20.0,175.16,175.04,1.14223089]
[1721961503678,20.0,175.16,175.03,21.14216987]
[1721961503877,45.0,175.15,175.03,21.14216987]
[1721961504417,3.46070793,175.19,175.03,21.14216987]
[1721961504418,1.14466437,175.19,175.03,21.14216987]
[1721961504700,33.00626437,175.2,175.04,45.0]
[1721961504891,26.57466437,175.2,175.06,22.7825]
[1721961505087,26.57466437,175.2,175.07,21.14202207]
[1721961505417,25.43,175.2,175.08,1.14202224]
[1721961505785,20.0,175.19,175.08,1.14202224]
[1721961506202,20.0,175.19,175.07,20.0]
[1721961506509,1.14466437,175.18,175.07,20.0]
[1721961506805,1.14466437,175.17,175.07,20.0]
[1721961508004,46.14466437,175.18,175.07,20.0]
[1721961508210,26.57466437,175.17,175.07,20.0]
[1721961508400,45.0,175.16,175.07,20.0]
[1721961509224,1.14466437,175.15,175.06,22.7825]
[1721961509402,26.57466437,175.14,175.06,22.7825]
[1721961509601,25.43,175.14,175.06,22.7825]
[1721961509915,45.0,175.13,175.06,22.7825]
[1721961511027,26.57466437,175.21,175.07,1.14202874]
[1721961511321,25.43,175.21,175.07,1.14202874]
[1721961511499,1.14466437,175.2,175.07,21.14202874]
[1721961511812,26.57466437,175.21,175.07,21.14202874]
[1721961512698,45.0,175.2,175.07,21.14202874]
[1721961512887,1.14466437,175.19,175.07,20.0]
[1721961513418,21.14466437,175.2,175.08,1.14192547]
[1721961513798,21.14466437,175.2,175.07,21.1418638]
[1721961514312,45.0,175.19,175.07,21.14186254]
[1721961515793,45.0,175.19,175.08,1.14186407]
[1721961516007,45.0,175.19,175.07,21.14186407]
[1721961518512,45.0,175.19,175.08,1.1418658]
[1721961518725,45.0,175.19,175.07,20.0]
[1721961519435,1.14466437,175.18,175.07,20.0]
[1721961519619,45.0,175.19,175.07,20.0]
[1721961520443,25.43,175.18,175.07,20.0]
[1721961520637,45.0,175.17,175.07,20.0]
[1721961520829,25.43,175.18,175.08,1.14202838]
[1721961522828,45.0,175.19,175.08,1.14202838]
[1721961526926,45.0,175.19,175.07,20.0]
[1721961526927,45.0,175.19,175.07,21.1418965]
[1721961527111,46.14466437,175.19,175.07,20.0]
[1721961528033,45.0,175.19,175.07,20.0]
[1721961528236,12.7,175.14,175.09,12.7]
[1721961528426,12.7,175.14,175.1,20.0]
[1721961530231,12.7,175.15,175.1,20.0]
[1721961530424,20.0,175.2,175.12,15.9603]
[1721961530630,12.7,175.18,175.13,12.7]
[1721961530832,12.7,175.2,175.15,12.7]
[1721961531137,12.7,175.2,175.16,1.1416244]
[1721961532350,25.38,175.25,175.13,6.3041]
[1721961532638,25.38,175.22,175.13,6.3041]
[1721961532840,46.14466437,175.21,175.13,6.3041]
[1721961533018,21.14466437,175.2,175.13,6.3041]
[1721961533343,45.0,175.19,175.13,6.3041]
[1721961533636,45.0,175.19,175.12,15.9603]
[1721961535541,1.14466437,175.18,175.12,15.9603]
[1721961535742,1.14466437,175.17,175.12,15.9603]
[1721961536721,1.14466437,175.18,175.12,15.9603]
[1721961539947,2.2654443,175.21,175.12,15.9603]
[1721961540246,1.14466437,175.2,175.12,15.9603]
[1721961541139,20.0,175.21,175.12,15.9603]
[1721961541334,1.14466437,175.2,175.12,15.9603]
[1721961541718,46.14466437,175.2,175.12,15.9603]
[1721961541920,1.14466437,175.2,175.12,15.9603]
[1721961542116,25.38,175.27,175.14,6.4564]
[1721961542321,639.37042479,175.3,175.16,16.3602]
[1721961542628,15.8047,175.31,175.17,21.14129726]
[1721961542844,25.38,175.33,175.19,6.4564]
[1721961543142,25.38,175.33,175.21,16.3602]
[1721961543344,25.38,175.33,175.22,20.0]
[1721961544551,45.0,175.32,175.22,20.0]
[1721961544727,25.38,175.33,175.22,20.0]
[1721961545131,1.14466437,175.33,175.22,20.0]
[1721961545950,258.91557126,175.37,175.23,33.14982551]
[1721961545951,256.6,175.37,175.23,33.14982551]
[1721961546129,256.6,175.37,175.24,66.14070722]
[1721961546453,18.46274149,175.4,175.24,66.14070722]
[1721961546625,25.38,175.38,175.24,66.14070722]
[1721961546959,25.38,175.38,175.25,15.4327]
[1721961547130,25.38,175.38,175.26,21.14064788]
[1721961548050,1.14466437,175.37,175.26,20.0]
[1721961548631,46.14466437,175.37,175.26,20.0]
[1721961549934,45.0,175.37,175.27,1.14078218]
[1721961550468,46.14466437,175.37,175.26,20.0]
[1721961551056,45.0,175.37,175.26,20.0]
[1721961552554,25.38,175.35,175.25,15.4327]
[1721961552742,45.0,175.34,175.25,15.4327]
[1721961553142,26.52466437,175.38,175.25,15.4327]
[1721961553343,20.0,175.37,175.26,1.14070314]
[1721961554067,1.14466437,175.38,175.26,1.14070314]
[1721961554226,26.52466437,175.43,175.28,16.3962]
[1721961554426,25.38,175.45,175.3,16.5088]
[1721961554664,26.52466437,175.45,175.33,16.5088]
[1721961554838,26.52466437,175.45,175.34,20.0]
[1721961555336,0.8313573,175.46,175.34,20.0]
[1721961555530,0.8313573,175.46,175.35,1.14011773]
[1721961555752,0.8313573,175.46,175.36,1.14001626]
[1721961556459,0.8313573,175.46,175.34,20.0]
[1721961556644,0.8313573,175.46,175.34,21.13654426]
[1721961557045,26.2113573,175.46,175.35,1.14018846]
[1721961557361,26.2113573,175.46,175.34,20.0]
[1721961557539,45.0,175.45,175.34,20.0]
[1721961557729,45.0,175.45,175.35,1.14025426]
[1721961557933,1.14466437,175.45,175.34,20.0]
[1721961558145,20.0,175.45,175.34,20.0]
[1721961558359,20.0,175.45,175.35,1.14015037]
[1721961558534,20.0,175.45,175.34,21.14015037]
[1721961558854,26.2113573,175.46,175.34,21.14015037]
[1721961559362,0.8313573,175.46,175.34,21.14015037]
[1721961559532,0.8313573,175.46,175.35,6.424]
[1721961559730,0.8313573,175.46,175.36,66.13994649]
[1721961559948,0.8313573,175.46,175.36,20.0]
[1721961560142,0.8313573,175.46,175.36,21.13994631]
[1721961560751,0.8313573,175.46,175.39,6.424]
[1721961560934,0.8313573,175.46,175.41,15.1545]
[1721961561142,0.8313573,175.46,175.42,1.13966411]
[1721961561332,0.8313573,175.46,175.43,1.13966465]
[1721961561964,0.8313573,175.46,175.42,20.0]
[1721961562255,16.225,175.6,175.44,15.9878]
[1721961562462,41.605,175.6,175.45,1.13940306]
[1721961562646,41.605,175.6,175.46,1.13933553]
[1721961563640,1.14466437,175.6,175.46,1.13933553]
[1721961563848,1.14466437,175.6,175.46,46.13933553]
[1721961564162,1.14466437,175.6,175.45,20.0]
[1721961564163,25.38,175.57,175.47,20.0]
[1721961564349,25.38,175.57,175.45,20.0]
[1721961564746,1.14466437,175.56,175.45,20.0]
[1721961565060,46.14466437,175.56,175.44,17.12738838]
[1721961565362,46.14466437,175.56,175.44,15.9878]
[1721961565659,46.14466437,175.56,175.44,17.12736355]
[1721961565660,45.0,175.56,175.44,17.12736355]
[1721961566162,25.38,175.6,175.44,17.12736355]
[1721961566358,65.0,175.59,175.44,17.12736355]
[1721961566737,65.0,175.59,175.45,20.0]
[1721961566936,65.0,175.59,175.46,1.13937582]
[1721961567543,1.14466437,175.58,175.45,20.0]
[1721961567743,66.14466437,175.59,175.45,20.0]
[1721961569364,1.14466437,175.58,175.46,1.13945898]
[1721961569668,65.0,175.59,175.46,1.13945898]
[1721961569853,1.14466437,175.58,175.45,20.0]
[1721961570038,1.14466437,175.57,175.45,21.13942176]
[1721961570238,1.14466437,175.57,175.45,20.0]
[1721961570442,65.0,175.59,175.45,20.0]
[1721961570638,65.0,175.59,175.46,1.13944043]
[1721961571060,20.0,175.59,175.46,1.13944043]
[1721961571249,20.0,175.61,175.46,46.13944043]
[1721961571456,20.0,175.61,175.48,6.5222]
[1721961571662,20.0,175.61,175.49,20.0]
[1721961572263,0.8313573,175.63,175.5,16.1858]
[1721961572447,0.8313573,175.63,175.51,21.13909694]
[1721961573154,1.14466437,175.62,175.51,20.0]
[1721961573870,21.14466437,175.62,175.51,20.0]
[1721961574181,46.14466437,175.61,175.51,20.0]
[1721961574881,45.0,175.61,175.51,20.0]
[1721961575381,46.14466437,175.61,175.51,20.0]
[1721961575565,45.0,175.61,175.51,20.0]
[1721961576360,46.52466437,175.6,175.5,16.1858]
[1721961576567,45.0,175.59,175.5,16.1858]
[1721961576784,21.14466437,175.58,175.5,16.1858]
[1721961576971,46.14466437,175.57,175.5,16.1858]
[1721961577658,20.0,175.58,175.5,16.1858]
[1721961578480,25.38,175.62,175.51,20.0]
[1721961578680,20.0,175.61,175.51,20.0]
[1721961579065,1.14466437,175.6,175.51,20.0]
[1721961579251,20.0,175.61,175.51,21.13923515]
[1721961579653,20.0,175.62,175.51,20.0]
[1721961579965,21.14466437,175.62,175.51,20.0]
[1721961580164,45.0,175.61,175.51,20.0]
[1721961581984,45.0,175.61,175.52,1.13925572]
[1721961582350,45.0,175.61,175.51,20.0]
[1721961583056,45.0,175.61,175.52,1.13925577]
[1721961584058,45.0,175.61,175.51,20.0]
[1721961585767,45.0,175.61,175.5,16.1858]
[1721961585768,52.21936437,175.6,175.5,16.1858]
[1721961586082,45.0,175.59,175.5,16.1858]
[1721961586384,25.38,175.57,175.5,16.1858]
[1721961586592,66.14466437,175.56,175.5,16.1858]
[1721961588066,65.0,175.56,175.5,16.1858]
[1721961589485,1.14466437,175.55,175.48,6.5222]
[1721961589778,1.14466437,175.54,175.48,6.5222]
[1721961590160,65.0,175.56,175.48,6.5222]
[1721961590670,1.14466437,175.55,175.48,6.5222]
[1721961590877,65.0,175.56,175.48,6.5222]
[1721961591565,1.14466437,175.55,175.48,6.5222]
[1721961592082,65.0,175.56,175.48,6.5222]
[1721961592585,66.14466437,175.56,175.48,6.5222]
[1721961593558,65.0,175.56,175.48,6.5222]
[1721961594174,66.14466437,175.56,175.48,6.5222]